bitfinex/quotes_SOLUSD_20250506
["timestamp","ask_amount","ask_price","bid_price","bid_amount"]
[1746499107270,157.29181043,144.58,144.54,13.92]
[1746499107451,18.64964886,144.56,144.54,13.92]
[1746499107647,180.79280549,144.55,144.54,13.92]
[1746499109059,180.93496706,144.55,144.54,13.92]
[1746499109980,187.8529885,144.55,144.54,13.92]
[1746499110375,49.3529885,144.55,144.5,261.44315663]
[1746499110585,42.29280549,144.51,144.5,237.8]
[1746499110887,42.29280549,144.51,144.49,13.92]
[1746499111392,18.64964886,144.5,144.49,13.92]
[1746499112084,42.43496706,144.5,144.49,13.92]
[1746499112463,48.51536706,144.5,144.49,13.92]
[1746499115582,0.14216157,144.49,144.45,13.92]
[1746499115788,42.29280549,144.47,144.45,13.92]
[1746499115974,42.43496706,144.46,144.41,237.86]
[1746499116285,42.43496706,144.46,144.42,13.92]
[1746499116286,18.64964886,144.44,144.42,13.92]
[1746499116586,18.64964886,144.44,144.42,37.56315663]
[1746499116769,18.64964886,144.44,144.43,23.64315663]
[1746499117898,18.64964886,144.44,144.42,20.84404691]
[1746499118060,18.64964886,144.44,144.42,44.48720354]
[1746499118785,138.5,144.45,144.43,23.64315663]
[1746499118993,138.5,144.45,144.44,23.64315663]
[1746499119193,138.5,144.45,144.44,30.56644657]
[1746499120266,138.5,144.45,144.42,44.48724196]
[1746499121296,138.5,144.45,144.42,20.84408533]
[1746499121483,138.5,144.44,144.42,44.48724196]
[1746499122085,138.5,144.44,144.43,23.64315663]
[1746499123395,18.64964886,144.47,144.43,23.64315663]
[1746499123396,138.5,144.47,144.43,23.64315663]
[1746499123579,138.5,144.47,144.46,23.64315663]
[1746499125297,138.5,144.47,144.46,30.56548807]
[1746499127293,146.6962,144.54,144.46,97.5144733]
[1746499127481,157.14964886,144.53,144.52,23.64315663]
[1746499127679,157.14964886,144.53,144.52,37.56315663]
[1746499128198,157.14964886,144.53,144.52,44.48261414]
[1746499128398,138.5,144.53,144.52,44.48261414]
[1746499128597,138.5,144.53,144.52,37.56315663]
[1746499128800,157.14964886,144.53,144.52,13.92]
[1746499129777,138.5,144.53,144.52,20.83945751]
[1746499129982,138.5,144.53,144.52,44.48261414]
[1746499131383,138.5,144.53,144.52,20.83945751]
[1746499131687,180.79280549,144.53,144.52,13.92]
[1746499131893,180.93496706,144.53,144.52,13.92]
[1746499132399,157.14964886,144.53,144.52,20.83945751]
[1746499133000,157.14964886,144.53,144.52,13.92]
[1746499133202,162.14315663,144.53,144.49,23.64315663]
[1746499133387,138.5,144.52,144.48,61.78796283]
[1746499133589,138.5,144.52,144.51,23.64315663]
[1746499135315,138.5,144.52,144.51,30.56309296]
[1746499138419,138.5,144.52,144.51,30.49330305]
[1746499139196,138.5,144.52,144.51,6.91993633]
[1746499139401,138.5,144.52,144.51,30.56309296]
[1746499140001,138.5,144.56,144.51,47.8629338]
[1746499140203,138.5,144.56,144.54,23.64315663]
[1746499140403,138.5,144.56,144.54,37.54315663]
[1746499140902,138.5,144.56,144.54,13.9]
[1746499143301,138.5,144.56,144.54,20.8183874]
[1746499144523,18.64964886,144.55,144.54,13.9]
[1746499144718,42.43496706,144.55,144.49,30.5640508]
[1746499144899,18.64964886,144.53,144.5,13.9]
[1746499145101,18.64964886,144.53,144.5,37.54315663]
[1746499145308,18.64964886,144.53,144.51,23.64315663]
[1746499146601,18.64964886,144.53,144.52,6.91945751]
[1746499146803,18.64964886,144.53,144.51,6.9198086]
[1746499147820,18.64964886,144.53,144.51,30.56296523]
[1746499148723,18.64964886,144.53,144.51,6.9198086]
[1746499149103,18.64964886,144.53,144.51,30.56296523]
[1746499151220,18.64964886,144.53,144.5,44.46341765]
[1746499152124,18.64964886,144.53,144.51,23.64315663]
[1746499154251,18.64964886,144.53,144.51,30.56280488]
[1746499155735,18.64964886,144.53,144.51,21.69824242]
[1746499157824,18.64964886,144.53,144.51,6.91964825]
[1746499158232,18.64964886,144.53,144.5,35.59886466]
[1746499158426,18.64964886,144.53,144.45,1.5972]
[1746499158427,18.64964886,144.5,144.46,6.92233144]
[1746499158629,171.92824303,144.5,144.47,13.9]
[1746499159232,14.77859417,144.49,144.47,13.9]
[1746499159942,180.81392473,144.5,144.47,13.9]
[1746499162047,23.80643744,144.49,144.47,13.9]
[1746499162224,164.07013357,144.5,144.47,13.9]
[1746499162225,42.4560863,144.48,144.47,13.9]
[1746499162424,68.4560863,144.48,144.43,251.86]
[1746499162621,42.4560863,144.46,144.43,251.86]
[1746499162923,49.0711863,144.46,144.43,251.86]
[1746499163138,23.66427587,144.45,144.43,251.86]
[1746499163335,138.5,144.44,144.43,13.9]
[1746499163941,180.9560863,144.44,144.43,13.9]
[1746499165231,157.29181043,144.44,144.43,13.9]
[1746499165944,49.37937624,144.44,144.43,13.9]
[1746499166256,18.64964886,144.4,144.39,37.56427587]
[1746499167646,18.64964886,144.4,144.39,13.9]
[1746499168146,68.4560863,144.4,144.39,13.9]
[1746499169358,44.79181043,144.4,144.39,13.9]
[1746499169543,68.4560863,144.4,144.39,13.9]
[1746499171729,44.79181043,144.4,144.39,13.9]
[1746499172562,8.1714,144.46,144.39,13.9]
[1746499172733,18.64964886,144.44,144.4,23.66427587]
[1746499172932,44.64964886,144.44,144.4,23.66427587]
[1746499173156,0.14216157,144.43,144.41,23.66427587]
[1746499173355,18.64964886,144.44,144.41,23.66427587]
[1746499173542,0.14216157,144.43,144.41,30.58897252]
[1746499175346,0.14216157,144.43,144.4,30.58936896]
[1746499175752,0.14216157,144.43,144.4,6.92509309]
[1746499177160,0.14216157,144.43,144.4,30.58936896]
[1746499177951,138.5,144.42,144.4,30.58936896]
[1746499178158,18.64964886,144.41,144.4,30.58936896]
[1746499181080,18.64964886,144.41,144.39,44.48990188]
[1746499181380,42.4560863,144.4,144.39,13.9]
[1746499181755,33.60040994,144.4,144.39,13.9]
[1746499182382,18.79181043,144.4,144.39,13.9]
[1746499183475,40.52561769,144.4,144.39,13.9]
[1746499183778,18.79181043,144.39,144.35,35.63610492]
[1746499183971,33.60040994,144.39,144.35,35.63610492]
[1746499184271,33.60040994,144.39,144.35,20.82750541]
[1746499184477,18.79181043,144.39,144.36,14.80859951]
[1746499184675,0.14216157,144.39,144.36,14.80859951]
[1746499185670,0.14216157,144.39,144.36,21.7353544]
[1746499185880,18.79181043,144.39,144.36,21.7353544]
[1746499187490,18.64964886,144.37,144.36,21.7353544]
[1746499190700,138.5,144.38,144.36,21.7353544]
[1746499190873,138.5,144.38,144.37,14.80859951]
[1746499192496,138.5,144.38,144.37,21.73524632]
[1746499200407,18.64964886,144.42,144.37,39.05186334]
[1746499200595,18.64964886,144.42,144.41,14.80859951]
[1746499201412,18.64964886,144.42,144.41,6.9247282]
[1746499203021,18.64964886,144.42,144.4,20.82508972]
[1746499203201,14.95076108,144.41,144.36,6.92712662]
[1746499203404,138.5,144.4,144.39,13.9]
[1746499204127,138.5,144.4,144.39,28.70859951]
[1746499205025,138.5,144.4,144.39,35.63428688]
[1746499205429,157.14964886,144.4,144.39,13.9]
[1746499205725,172.10040994,144.4,144.39,13.9]
[1746499207914,178.76010994,144.4,144.39,13.9]
[1746499208523,185.68531769,144.4,144.39,13.9]
[1746499208706,0.14216157,144.38,144.35,13.9]
[1746499209027,18.64964886,144.36,144.35,13.9]
[1746499210127,18.64964886,144.36,144.35,20.82760651]
[1746499210338,18.64964886,144.36,144.34,21.73648643]
[1746499210509,18.64964886,144.36,144.34,35.63648643]
[1746499212337,157.14964886,144.35,144.34,13.9]
[1746499212535,18.64964886,144.35,144.34,13.9]
[1746499213251,0.14216157,144.38,144.34,35.63668597]
[1746499213428,0.14216157,144.38,144.36,14.80859951]
[1746499213746,0.14216157,144.38,144.34,20.82808646]
[1746499213936,0.14216157,144.38,144.36,14.80859951]
[1746499214716,0.14216157,144.38,144.36,21.73555876]
[1746499215117,18.64964886,144.39,144.37,14.80859951]
[1746499215422,18.64964886,144.4,144.38,14.80859951]
[1746499215740,18.64964886,144.4,144.37,14.80859951]
[1746499216635,18.64964886,144.4,144.37,21.73480222]
[1746499216841,18.64964886,144.41,144.38,14.80859951]
[1746499217542,157.14964886,144.39,144.38,14.80859951]
[1746499219354,157.14964886,144.39,144.38,35.63476656]
[1746499223647,157.14964886,144.39,144.38,28.70859951]
[1746499223948,138.5,144.39,144.38,35.63476656]
[1746499226040,157.14964886,144.41,144.38,35.63476656]
[1746499226528,157.14964886,144.41,144.4,14.80859951]
[1746499228458,157.14964886,144.41,144.38,20.82602742]
[1746499228652,157.14964886,144.41,144.38,35.63462693]
[1746499228831,157.14964886,144.41,144.39,14.80859951]
[1746499231757,157.14964886,144.41,144.39,21.73417903]
[1746499232160,157.14964886,144.41,144.4,14.80859951]
[1746499233260,138.5,144.41,144.4,21.73380726]
[1746499233656,18.64964886,144.46,144.4,21.73380726]
[1746499233970,138.5,144.45,144.41,14.80859951]
[1746499235135,138.5,144.45,144.44,14.80859951]
[1746499235342,138.5,144.45,144.44,35.63188945]
[1746499235759,138.5,144.45,144.44,20.82328994]
[1746499236063,138.5,144.45,144.44,35.63188945]
[1746499238149,138.5,144.48,144.44,52.94011431]
[1746499238342,138.5,144.48,144.47,14.80859951]
[1746499239559,138.5,144.48,144.47,21.73045179]
[1746499248787,138.5,144.53,144.47,53.84368201]
[1746499249090,18.64964886,144.53,144.52,14.80859951]
[1746499249265,157.14964886,144.53,144.52,28.68859951]
[1746499250083,157.14964886,144.53,144.52,35.60805702]
[1746499250684,157.14964886,144.53,144.52,13.88]
[1746499250854,157.14964886,144.53,144.52,28.68859951]
[1746499253290,138.5,144.53,144.52,35.60805702]
[1746499254483,157.14964886,144.53,144.52,13.88]
[1746499256583,171.95824837,144.53,144.5,13.88]
[1746499256978,157.14964886,144.53,144.5,13.88]
[1746499257286,157.14964886,144.53,144.5,28.68859951]
[1746499258389,157.14964886,144.53,144.5,13.88]
[1746499258874,157.14964886,144.53,144.5,28.68859951]
[1746499259693,157.14964886,144.53,144.5,35.60901118]
[1746499260270,157.14964886,144.53,144.5,28.68859951]
[1746499260674,178.61220994,144.52,144.5,13.88]
[1746499261597,185.53177737,144.52,144.5,13.88]
[1746499261975,33.60040994,144.51,144.5,13.88]
[1746499262180,18.64964886,144.5,144.46,13.88]
[1746499262380,18.79181043,144.48,144.46,13.88]
[1746499262580,18.64964886,144.48,144.47,14.80859951]
[1746499262893,18.64964886,144.48,144.47,21.73045179]
[1746499264793,18.64964886,144.48,144.46,13.88]
[1746499265576,25.57107341,144.48,144.46,13.88]
[1746499266090,25.57107341,144.48,144.44,251.92]
[1746499266091,18.64964886,144.46,144.44,251.92]
[1746499266293,172.10040994,144.45,144.44,13.88]
[1746499266669,25.71462109,144.45,144.44,13.88]
[1746499266887,40.5232206,144.45,144.44,13.88]
[1746499267582,18.79181043,144.44,144.41,28.68859951]
[1746499267785,18.64964886,144.42,144.41,28.68859951]
[1746499268100,138.5,144.43,144.41,35.61332771]
[1746499268399,138.5,144.43,144.42,14.80859951]
[1746499270899,157.14964886,144.43,144.42,14.80859951]
[1746499276411,157.14964886,144.43,144.39,28.68859951]
[1746499276412,18.64964886,144.42,144.39,28.68859951]
[1746499277095,18.64964886,144.42,144.4,14.80859951]
[1746499277804,18.64964886,144.42,144.41,14.80859951]
[1746499279820,18.64964886,144.42,144.41,21.73332771]
[1746499284109,138.5,144.43,144.41,21.73332771]
[1746499284316,138.5,144.43,144.42,14.80859951]
[1746499285312,18.64964886,144.42,144.4,6.92510711]
[1746499285497,18.64964886,144.42,144.4,14.80859951]
[1746499285703,18.64964886,144.42,144.39,20.80553906]
[1746499285704,0.14216157,144.41,144.39,13.88]
[1746499286007,138.5,144.4,144.39,13.88]
[1746499287316,138.5,144.4,144.39,28.68859951]
[1746499289415,138.5,144.4,144.39,35.61428688]
[1746499289613,157.14964886,144.4,144.39,35.61428688]
[1746499290796,157.14964886,144.4,144.39,28.68859951]
[1746499291002,157.14964886,144.4,144.39,13.88]
[1746499300138,157.29181043,144.4,144.39,13.88]
[1746499300636,18.79181043,144.4,144.39,13.88]
[1746499304021,25.71701818,144.4,144.39,13.88]
[1746499304719,40.52561769,144.4,144.39,13.88]
[1746499305629,46.78511769,144.4,144.39,13.88]
[1746499307730,39.85990994,144.4,144.39,13.88]
[1746499310144,46.78511769,144.4,144.39,13.88]
[1746499311145,25.05131043,144.4,144.39,13.88]
[1746499311340,39.85990994,144.4,144.39,13.88]
[1746499311526,25.05131043,144.4,144.39,13.88]
[1746499311725,18.79181043,144.4,144.39,13.88]
[1746499312034,18.79181043,144.4,144.39,28.68859951]
[1746499316935,18.79181043,144.4,144.39,13.88]
[1746499317456,18.64964886,144.4,144.39,35.61428688]
[1746499319241,26.0,144.43,144.39,35.61428688]
[1746499319562,18.64964886,144.42,144.4,14.80859951]
[1746499319750,18.64964886,144.42,144.39,28.68859951]
[1746499320055,157.14964886,144.42,144.39,28.68859951]
[1746499320460,157.14964886,144.42,144.39,35.61428384]
[1746499321057,157.14964886,144.42,144.39,28.68859951]
[1746499321453,157.14964886,144.42,144.39,13.88]
[1746499321454,14.95076108,144.41,144.39,13.88]
[1746499322252,18.79181043,144.4,144.39,13.88]
[1746499322642,33.60040994,144.4,144.39,13.88]
[1746499323541,40.52561769,144.4,144.39,13.88]
[1746499324964,18.79181043,144.4,144.39,13.88]
[1746499327342,6.3612,144.44,144.39,13.88]
[1746499327670,18.64964886,144.43,144.41,14.80859951]
[1746499328546,18.64964886,144.44,144.41,14.80859951]
[1746499329861,18.64964886,144.44,144.41,21.73324021]
[1746499331860,18.79181043,144.45,144.42,14.80859951]
[1746499332059,138.5,144.43,144.42,14.80859951]
[1746499334774,18.64964886,144.42,144.4,6.92501539]
[1746499335075,18.64964886,144.42,144.41,21.73332771]
[1746499335754,138.5,144.43,144.41,21.73332771]
[1746499335950,138.5,144.47,144.42,14.80859951]
[1746499336284,138.5,144.47,144.46,14.80859951]
[1746499336285,157.14964886,144.47,144.46,14.80859951]
[1746499336464,157.14964886,144.47,144.46,28.66859951]
[1746499337680,138.5,144.47,144.46,35.59093095]
[1746499339565,138.5,144.47,144.46,28.66859951]
[1746499339766,157.14964886,144.47,144.46,28.66859951]
[1746499340160,157.14964886,144.47,144.46,13.86]
[1746499340376,40.52226222,144.47,144.46,13.86]
[1746499341960,40.52226222,144.47,144.42,13.86]
[1746499341961,18.79181043,144.46,144.42,13.86]
[1746499342160,18.64964886,144.44,144.42,13.86]
[1746499342575,0.14216157,144.43,144.42,13.86]
[1746499343057,18.64964886,144.45,144.42,28.66859951]
[1746499343262,18.64964886,144.45,144.43,14.80859951]
[1746499344767,18.64964886,144.45,144.43,21.73228573]
[1746499345284,18.64964886,144.45,144.43,14.80859951]
[1746499346095,138.5,144.44,144.43,14.80859951]
[1746499346909,138.5,144.44,144.42,20.78410833]
[1746499347217,18.64964886,144.43,144.42,13.86]
[1746499347884,18.64964886,144.43,144.42,28.66859951]
[1746499348709,18.64964886,144.43,144.42,13.86]
[1746499353410,18.79181043,144.43,144.42,13.86]
[1746499354012,18.64964886,144.43,144.42,13.86]
[1746499354194,18.79181043,144.43,144.42,13.86]
[1746499355021,0.14216157,144.43,144.42,13.86]
[1746499357140,0.14216157,144.43,144.41,14.80859951]
[1746499358023,138.5,144.42,144.41,14.80859951]
[1746499358924,138.5,144.42,144.41,21.73332771]
[1746499360117,138.5,144.42,144.41,14.80859951]
[1746499361627,138.5,144.42,144.41,6.9247282]
[1746499361921,138.5,144.42,144.41,21.73332771]
[1746499362095,138.5,144.42,144.41,14.80859951]
[1746499362301,138.5,144.42,144.41,21.73332771]
[1746499363520,138.5,144.42,144.41,14.80859951]
[1746499363814,138.5,144.42,144.41,21.73332771]
[1746499364404,138.5,144.42,144.41,36.54192722]
[1746499364811,138.5,144.42,144.41,21.73332771]
[1746499366424,138.5,144.42,144.41,36.54192722]
[1746499367205,138.5,144.42,144.41,21.73332771]
[1746499369622,138.5,144.42,144.41,36.54192722]
[1746499370417,138.5,144.42,144.41,21.73332771]
[1746499370927,138.4316024,144.42,144.41,21.73332771]
[1746499373337,157.08125126,144.46,144.41,39.04514822]
[1746499373639,157.08125126,144.46,144.45,14.80859951]
[1746499373841,157.08125126,144.46,144.45,28.64859951]
[1746499374242,138.4316024,144.46,144.45,28.64859951]
[1746499374444,138.4316024,144.51,144.45,28.64859951]
[1746499374736,138.4316024,144.51,144.5,14.80859951]
[1746499375040,157.08125126,144.51,144.5,28.64859951]
[1746499375549,157.08125126,144.51,144.5,35.56901473]
[1746499376110,138.4316024,144.51,144.5,35.56901473]
[1746499377524,157.08125126,144.51,144.5,28.64859951]
[1746499378855,157.08125126,144.51,144.5,35.56901473]
[1746499379354,157.08125126,144.51,144.5,28.64859951]
[1746499379661,138.4316024,144.51,144.5,35.56901473]
[1746499386156,138.4316024,144.51,144.5,20.76041522]
[1746499386353,138.4316024,144.51,144.5,35.56901473]
[1746499398357,138.4316024,144.57,144.51,26.0]
[1746499398552,157.08125126,144.57,144.56,14.80859951]
[1746499398741,138.4316024,144.57,144.56,28.62859951]
[1746499399154,18.64964886,144.59,144.56,35.54614239]
[1746499399360,18.64964886,144.59,144.58,14.80859951]
[1746499399563,18.64964886,144.59,144.57,14.80859951]
[1746499400273,18.64964886,144.59,144.56,13.82]
[1746499400448,33.45824837,144.57,144.56,13.82]
[1746499401178,40.37531276,144.57,144.56,13.82]
[1746499404280,25.56671325,144.57,144.56,13.82]
[1746499404681,18.79181043,144.57,144.56,13.82]
[1746499404983,25.70887482,144.57,144.56,13.82]
[1746499405873,40.51747433,144.57,144.56,13.82]
[1746499406581,33.60040994,144.57,144.56,13.82]
[1746499407371,40.51747433,144.57,144.56,13.82]
[1746499407789,25.70887482,144.57,144.56,13.82]
[1746499408090,40.51747433,144.57,144.56,13.82]
[1746499410791,25.70887482,144.57,144.56,13.82]
[1746499410970,40.51747433,144.57,144.56,13.82]
[1746499411592,33.60040994,144.57,144.56,13.82]
[1746499411777,18.79181043,144.57,144.56,13.82]
[1746499413967,33.60040994,144.57,144.56,13.82]
[1746499414892,40.51747433,144.57,144.56,13.82]
[1746499415391,25.70887482,144.57,144.56,13.82]
[1746499415596,40.51747433,144.57,144.56,13.82]
[1746499415779,18.79181043,144.57,144.56,13.82]
[1746499416293,0.14216157,144.55,144.51,14.80859951]
[1746499416591,14.95076108,144.55,144.52,13.82]
[1746499419390,0.14216157,144.53,144.52,13.82]
[1746499419685,33.60040994,144.53,144.52,13.82]
[1746499420870,0.14216157,144.51,144.48,28.62859951]
[1746499421084,18.64964886,144.49,144.48,13.82]
[1746499422173,18.79181043,144.49,144.48,13.82]
[1746499423275,40.52130411,144.49,144.48,13.82]
[1746499423478,18.79181043,144.47,144.42,6.92408809]
[1746499423791,18.79181043,144.47,144.44,14.80859951]
[1746499423792,138.5,144.46,144.44,14.80859951]
[1746499427099,138.5,144.45,144.44,14.80859951]
[1746499427899,18.64964886,144.44,144.43,13.82]
[1746499428096,18.64964886,144.44,144.43,28.62859951]
[1746499428398,18.64964886,144.44,144.43,35.55236881]
[1746499432503,138.5,144.45,144.43,35.55236881]
[1746499432706,157.14964886,144.45,144.44,14.80859951]
[1746499432892,157.14964886,144.45,144.44,14.7402019]
[1746499433310,18.64964886,144.44,144.43,13.82]
[1746499433516,18.64964886,144.44,144.43,28.62859951]
[1746499435317,18.64964886,144.44,144.43,35.55236881]
[1746499436890,138.5,144.45,144.43,35.55236881]
[1746499437090,138.5,144.45,144.44,14.80859951]
[1746499438505,138.5,144.45,144.44,21.73188945]
[1746499441722,138.5,144.45,144.43,13.82]
[1746499442026,138.5,144.45,144.43,28.62859951]
[1746499443109,18.64964886,144.44,144.43,13.82]
[1746499448395,18.64964886,144.44,144.41,13.82]
[1746499448396,18.64964886,144.42,144.41,13.82]
[1746499451416,138.5,144.43,144.41,35.55332771]
[1746499451717,157.14964886,144.43,144.42,14.80859951]
[1746499452514,157.14964886,144.43,144.42,21.73284822]
[1746499453928,157.14964886,144.43,144.42,14.80859951]
[1746499454126,18.64964886,144.42,144.41,13.82]
[1746499454327,18.64964886,144.42,144.41,28.62859951]
[1746499454628,18.64964886,144.42,144.41,13.82]
[1746499454920,18.64964886,144.42,144.41,28.62859951]
[1746499457919,18.64964886,144.42,144.41,13.82]
[1746499458829,18.64964886,144.42,144.41,28.62859951]
[1746499459033,138.5,144.43,144.41,35.55332771]
[1746499459200,157.14964886,144.43,144.42,14.80859951]
[1746499459929,157.14964886,144.43,144.41,20.7447282]
[1746499460108,157.14964886,144.43,144.42,14.80859951]
[1746499461906,157.14964886,144.43,144.41,20.74457597]
[1746499462130,157.14964886,144.43,144.42,14.80859951]
[1746499464024,18.64964886,144.42,144.41,28.62859951]
[1746499465006,18.64964886,144.42,144.41,35.55332771]
[1746499465814,18.64964886,144.42,144.41,28.62859951]
[1746499468629,18.64964886,144.42,144.41,35.55332771]
[1746499469314,138.5,144.43,144.41,35.55332771]
[1746499469623,138.5,144.43,144.42,21.73284822]
[1746499469797,138.5,144.43,144.42,14.80859951]
[1746499470731,18.64964886,144.42,144.41,28.62859951]
[1746499470910,18.64964886,144.42,144.41,13.82]
[1746499475734,18.64964886,144.42,144.41,28.62859951]
[1746499479335,18.64964886,144.42,144.41,13.82]
[1746499479626,138.5,144.43,144.41,35.55332771]
[1746499479832,138.5,144.43,144.42,14.80859951]
[1746499481018,138.5,144.43,144.42,21.73284822]
[1746499483135,138.5,144.43,144.42,6.92424871]
[1746499483336,138.5,144.43,144.42,14.80859951]
[1746499485436,138.5,144.43,144.42,21.73284822]
[1746499490014,18.64964886,144.47,144.42,21.73284822]
[1746499490220,18.64964886,144.47,144.46,14.80859951]
[1746499490541,18.64964886,144.47,144.46,28.60859951]
[1746499501738,18.64964886,144.47,144.46,13.8]
[1746499501938,35.17962646,144.47,144.46,13.8]
[1746499502258,0.14216157,144.46,144.42,23.24596375]
[1746499502441,18.64964886,144.44,144.42,23.24596375]
[1746499502956,18.64964886,144.44,144.43,9.46596375]
[1746499503134,138.5,144.45,144.43,9.46596375]
[1746499503456,138.5,144.45,144.44,9.46596375]
[1746499503761,138.5,144.45,144.44,14.79012512]
[1746499504249,138.5,144.45,144.44,21.71341506]
[1746499504431,138.5,144.49,144.44,21.71341506]
[1746499504636,18.64964886,144.49,144.48,14.79012512]
[1746499508269,18.64964886,144.49,144.47,20.70183299]
[1746499508566,18.64964886,144.49,144.48,14.79012512]
[1746499511363,138.5,144.5,144.48,14.79012512]
[1746499511561,157.14964886,144.5,144.49,14.79012512]
[1746499512245,138.5,144.5,144.49,14.79012512]
[1746499513465,138.5,144.5,144.49,21.71101929]
[1746499530187,144.5633,144.55,144.49,21.71101929]
[1746499530389,18.64964886,144.54,144.49,24.22312961]
[1746499530574,18.64964886,144.54,144.53,14.79012512]
[1746499530871,18.64964886,144.54,144.53,28.57012512]
[1746499531264,138.5,144.55,144.53,28.57012512]
[1746499531459,157.14964886,144.55,144.54,14.79012512]
[1746499532168,157.14964886,144.55,144.54,21.70862518]
[1746499533292,18.64964886,144.57,144.54,21.70862518]
[1746499533489,18.64964886,144.57,144.56,14.79012512]
[1746499534500,18.64964886,144.57,144.56,21.707668]
[1746499537593,18.64964886,144.57,144.55,14.79012512]
[1746499537966,24.73334886,144.57,144.54,14.79012512]
[1746499538185,24.73334886,144.57,144.55,14.79012512]
[1746499539814,24.73334886,144.57,144.56,14.79012512]
[1746499540091,18.64964886,144.57,144.56,14.79012512]
[1746499541502,18.64964886,144.57,144.56,21.707668]
[1746499542586,138.5,144.58,144.56,21.707668]
[1746499542782,157.14964886,144.58,144.57,14.79012512]
[1746499543100,18.64964886,144.6,144.57,14.79012512]
[1746499543402,18.64964886,144.6,144.59,14.79012512]
[1746499543600,18.64964886,144.6,144.59,21.70623273]
[1746499543803,144.8129,144.61,144.59,21.70623273]
[1746499544009,163.46254886,144.61,144.6,14.79012512]
[1746499544305,157.14964886,144.61,144.6,14.79012512]
[1746499544502,138.5,144.61,144.6,14.79012512]
[1746499544696,138.5,144.65,144.6,14.79012512]
[1746499545001,157.14964886,144.65,144.64,14.79012512]
[1746499545706,157.14964886,144.65,144.64,21.70384193]
[1746499546902,157.14964886,144.65,144.64,14.79012512]
[1746499547989,157.14964886,144.65,144.64,21.70384193]
[1746499549395,138.5,144.65,144.64,21.70384193]
[1746499550692,138.5,144.69,144.64,21.70384193]
[1746499550893,18.64964886,144.68,144.64,6.91371681]
[1746499551093,18.64964886,144.68,144.67,14.79012512]
[1746499553510,18.64964886,144.68,144.67,21.70240824]
[1746499554618,18.64964886,144.68,144.67,14.79012512]
[1746499555317,18.64964886,144.68,144.66,6.91274103]
[1746499555524,18.64964886,144.68,144.67,14.79012512]
[1746499556326,138.5,144.69,144.67,21.70230374]
[1746499556510,157.14964886,144.69,144.68,28.55012512]
[1746499557218,157.29181043,144.69,144.68,13.76]
[1746499558226,157.14964886,144.69,144.68,13.76]
[1746499559126,157.14964886,144.69,144.68,28.55012512]
[1746499559329,138.5,144.69,144.68,35.46193048]
[1746499560326,138.5,144.69,144.68,28.55012512]
[1746499560827,138.5,144.69,144.68,35.46193048]
[1746499567828,18.64964886,144.72,144.68,35.46193048]
[1746499568029,18.64964886,144.72,144.71,14.79012512]
[1746499573644,18.64964886,144.72,144.71,21.70049758]
[1746499573943,18.64964886,144.72,144.71,35.44049758]
[1746499574444,18.64964886,144.72,144.71,28.53012512]
[1746499578028,18.64964886,144.72,144.71,35.44049758]
[1746499578345,18.64964886,144.72,144.71,28.53012512]
[1746499579435,18.64964886,144.72,144.71,13.74]
[1746499579640,18.64964886,144.72,144.71,28.53012512]
[1746499582731,18.64964886,144.72,144.71,13.74]
[1746499582938,18.64964886,144.72,144.71,28.53012512]
[1746499597770,18.64964886,144.72,144.71,23.17362231]
[1746499612579,18.64964886,144.72,144.71,30.08399477]
[1746499613480,18.64964886,144.72,144.71,23.17362231]
[1746499613866,18.64964886,144.72,144.71,30.08399477]
[1746499615693,138.5,144.75,144.71,30.08399477]
[1746499615876,18.64964886,144.74,144.71,20.65037246]
[1746499616071,138.5,144.75,144.73,9.43362231]
[1746499616264,157.14964886,144.75,144.74,9.43362231]
[1746499617175,157.14964886,144.75,144.74,16.34256247]
[1746499618674,138.5,144.75,144.74,16.34256247]
[1746499619484,157.14964886,144.75,144.74,9.43362231]
[1746499620289,18.64964886,144.73,144.72,9.43362231]
[1746499621164,18.64964886,144.73,144.72,16.34351727]
[1746499622406,18.64964886,144.77,144.72,16.34351727]
[1746499622704,18.64964886,144.77,144.76,9.43362231]
[1746499623277,18.64964886,144.77,144.76,16.34160794]
[1746499623489,138.5,144.78,144.76,30.06160794]
[1746499623697,157.14964886,144.78,144.76,20.62798563]
[1746499623904,157.14964886,144.78,144.77,14.72523967]